Cogmind - Beta 14 @@@ ROGUE MODE // 2024.08.08 @ 23:17:55 Player: FauxMaasks Result: Destroyed by OS-XDY(R) with Subdweller Beam Cannon Performance ------------- Evolutions (0) 0 Regions Visited (2) 400 Robots Destroyed (23) 115 Value Destroyed (468) 468 Prototype IDs (0) 0 Alien Tech Used (0) 0 Bonus (0) 0 TOTAL SCORE: 983 Bonus ------- None Cogmind --------- Core Integrity 0/250 Matter 167/300 Energy 100/100 System Corruption 0% Temperature Cool (9) Movement Core (1400) Ox27 Location -10/Subcaves Parts ------- > --- POWER (1) -------- (None) > --- PROPULSION (2) --- (None) > --- UTILITY (2) ------ Huge Storage Unit > --- WEAPON (2) ------- Subdweller Laser > --- INVENTORY (25) --- Wheel Compact Wheel Propulsion Shielding Light Armor Plating Medium Laser Subdweller Laser Light Assault Rifle Light Assault Rifle Light Cannon Light Cannon SUBCON Basin (Full) Peak State ------------ > --- POWER ------------ Light Ion Engine > --- PROPULSION ------- Compact Wheel Subdweller Monowheel > --- UTILITY ---------- Huge Storage Unit > --- WEAPON ----------- Light Assault Rifle Light Cannon > --- INVENTORY -------- Wheel Wheel Compact Wheel Propulsion Shielding Light Armor Plating Medium Laser Light Assault Rifle Light Assault Rifle Light Cannon Grenade Launcher SUBCON Basin [Rating: 26] Favorites ----------- Power Light Ion Engine Engine Light Ion Engine Propulsion Compact Wheel Wheel Compact Wheel Utility Huge Storage Unit Device Seismic Detector Storage Huge Storage Unit Protection Propulsion Shielding Weapon Light Assault Rifle Energy Gun Medium Laser Ballistic Gun Light Assault Rifle Ballistic Cannon Light Cannon Launcher Grenade Launcher Build | -11 -10 -10 ------- Run | Yrd Mat Sub Slots Evolved . | . . . Power . | . . . Propulsion . | . . . Utility . | . . . Weapon . | . . . Parts Attached 31 | 7 7 17 Power 4 | 1 1 2 Engine 4 | 1 1 2 Core . | . . . Reactor . | . . . Propulsion 8 | 2 2 4 Treads . | . . . Leg . | . . . Wheel 8 | 2 2 4 Hover . | . . . Flight . | . . . Utility 5 | 2 1 2 Device 2 | 1 . 1 Storage 2 | 1 1 . Processor . | . . . Hackware . | . . . Protection 1 | . . 1 Artifact . | . . . Weapon 14 | 2 3 9 Energy Gun 2 | 1 . 1 Energy Cannon . | . . . Ballistic Gun 7 | 1 2 4 Ballistic Cannon 1 | . . 1 Launcher 4 | . 1 3 Special Weapon . | . . . Impact Weapon . | . . . Slashing Weapon . | . . . Piercing Weapon . | . . . Special Melee Weapon . | . . . Unidentified Prototypes . | . . . Parts Lost 14 | . 3 11 Power 3 | . 1 2 Propulsion 5 | . 1 4 Utility 1 | . 1 . Weapon 5 | . . 5 Highest Loss Streak 5 | . 3 5 To Critical Strikes 1 | . . 1 Average Slot Usage (%) 86 | . 87 85 Engine 12 | . 11 12 Wheel 25 | . 26 24 Device 5 | . 5 4 Storage 14 | . 14 14 Energy Gun 5 | . 5 4 Ballistic Gun 18 | . 22 13 Ballistic Cannon 3 | . . 8 Peak Build Rating 26 | 7 8 26 Average Rating 11 | 4 6 19 On Entrance 5 | . 7 8 Naked Turns . | . . . Heaviest Build 91 | 12 87 91 Greatest Support 36 | 26 32 36 Greatest Overweight (x) 27 | . 5 27 Average Overweight (x) 2 | . 2 2 Largest Inventory Capacity 25 | 8 25 25 Average Capacity 23 | 7 23 25 Most Carried 25 | 3 21 25 Average Carried 14 | 1 9 23 Final Capacity 25 | 8 25 25 Final Carried 25 | 1 21 25 Class Distribution -------------------- 96% | Mutant 3% | Scavenger-Mutant Dominant Class ---------------- Mutant | -10/Materials Mutant | -10/Subcaves Resources | -11 -10 -10 ----------- Run | Yrd Mat Sub Matter Collected 612 | 185 240 187 Remotely . | . . . Salvage Created 575 | 17 366 192 Parts 50 | 1 29 20 Haulers Intercepted 1 | . 1 . Recyclers Shooed 1 | . 1 . Parts Field Recycled . | . . . Retrieved Matter . | . . . Parts Self-Destructed 13 | . . 13 Prevented . | . . . Kills | -11 -10 -10 ------- Run | Yrd Mat Sub Combat Hostiles Destroyed 18 | . 13 5 Guns 13 | . 10 3 AOE 5 | . 3 2 Classes Destroyed 8 | 1 6 1 Worker 1 | . 1 . Tunneler 1 | 1 . . Hauler 1 | . 1 . Operator 1 | . 1 . Watcher 1 | . 1 . Swarmer 9 | . 9 . Grunt 4 | . 4 . Subdweller 5 | . . 5 Best Kill Streak 4 | 1 4 2 Combat Bots Only 4 | . 4 2 Max Kills in Single Turn 3 | 1 3 1 Gunslinging . | . . . Exploded 3 | . 3 1 Melee . | . . . Uniques/NPCs Destroyed . | . . . Combat | -11 -10 -10 -------- Run | Yrd Mat Sub Hostile Shots Fired 93 | . 60 33 Missed 18 | . 10 8 Damage Taken 1200 | . 494 706 Core 253 | . 96 157 Absorbed by Shields . | . . . Core Remaining (%) 100 | 100 . . Volleys Fired 107 | 5 45 57 Largest 2 | 2 2 2 Hottest 70 | 70 70 60 Shots Fired 173 | 10 89 74 Gun 153 | 10 88 55 Cannon 5 | . . 5 Launcher 15 | . 1 14 Special . | . . . Kinetic 130 | 5 75 50 Thermal 28 | 5 13 10 Explosive 15 | . 1 14 Electromagnetic . | . . . Robot Hit Streak 27 | 4 14 27 Robot Miss Streak 3 | 1 3 2 Penetration Max . | . . . Secondary Targets . | . . . Shots Hit Robots 115 | 7 61 47 Core Hits 52 | 2 29 21 Critical Kills 2 | . 1 1 Critical Parts Destroyed . | . . . Critical Strikes 5 | . 4 1 Burn 3 | . 3 . Destroy 2 | . 1 1 Melee Attacks . | . . . Impact . | . . . Slashing . | . . . Piercing . | . . . Sneak Attacks . | . . . Combat Hostiles . | . . . Follow-up Attacks . | . . . Damage Inflicted 1603 | 76 654 873 Guns 962 | 76 545 341 Cannons 33 | . . 33 Explosions 608 | . 109 499 Melee . | . . . Ramming . | . . . Kinetic 785 | 26 404 355 Thermal 210 | 50 141 19 Explosive 608 | . 109 499 Electromagnetic . | . . . Impact . | . . . Slashing . | . . . Piercing . | . . . Highest Corruption . | . . . Average Corruption . | . . . Corruption Purged . | . . . Corruption Blocked . | . . . Overload Shots . | . . . Overflow Damage 21 | . . 21 Projectiles . | . . . Explosions 21 | . . 21 Melee . | . . . Knockbacks . | . . . Impact . | . . . Kinetic . | . . . Secondary . | . . . Self-Inflicted Damage 104 | . 31 73 Shots 4 | . 1 3 Rammed . | . . . Targets Rammed . | . . . Kicked . | . . . Crushed . | . . . Highest Temperature 378 | 50 94 378 Average Temperature 77 | 25 38 205 Received Heat Transfer 763 | . 114 649 Effects 1 | . . 1 Shutdowns 1 | . . 1 Siege Activations . | . . . Robots Corrupted . | . . . Combat Hostiles . | . . . Parts Fried . | . . . Impact Corruptions . | . . . Robots Melted . | . . . Combat Hostiles . | . . . Parts Melted 1 | 1 . . Heat Transferred 802 | 148 629 25 Parts Sabotaged . | . . . Parts Stolen . | . . . Parts Stripped . | . . . Power Chain Reactions . | . . . Alert | -11 -10 -10 ------- Run | Yrd Mat Sub Peak Influence 212 | 5 212 . Initial 3 | . 3 . Average 89 | . 94 . Maximum Alert Level 1 | . 1 . Low Security (%) 98 | 100 98 . Level 1 1 | . 1 . Level 2 . | . . . Level 3 . | . . . Level 4 . | . . . Level 5 . | . . . High Security . | . . . Max Security . | . . . Squads Dispatched 3 | . 3 . Investigation 2 | . 2 . Extermination . | . . . Reinforcement 1 | . 1 . Assault . | . . . Garrison . | . . . Intercept . | . . . Searches Triggered . | . . . Construction Impeded . | . . . Haulers Reinforced . | . . . Active Scanning Responses . | . . . Cargo Convoy Interrupts . | . . . Stealth | -11 -10 -10 --------- Run | Yrd Mat Sub Distress Signals 2 | . 2 . Communications Jammed . | . . . Distress Signals . | . . . Times Spotted 31 | . 24 7 Peak Tracking Total 5 | . 5 2 Tactical Retreats 3 | . 3 . Traps | -11 -10 -10 ------- Run | Yrd Mat Sub Traps Triggered 3 | . 2 1 Indirectly . | . . . Trap Hack Attempts . | . . . Triggered . | . . . Disarmed . | . . . Reprogrammed . | . . . Reused . | . . . Traps Extracted . | . . . Installed . | . . . Triggered . | . . . Machines | -11 -10 -10 ---------- Run | Yrd Mat Sub Machines Disabled . | . . . Max in Single Turn . | . . . Machines Repaired . | . . . Machines Dismantled . | . . . Machines Sabotaged . | . . . Overloaded Fab Kills . | . . . Hacking | -11 -10 -10 --------- Run | Yrd Mat Sub Machines Accessed 9 | . 7 2 Terminals 7 | . 7 . Fabricators . | . . . Repair Stations . | . . . Recycling Units . | . . . Scanalyzers . | . . . Garrison Access . | . . . Total Hacks 19 | . 16 3 Successful 12 | . 9 3 Failed 7 | . 7 . Catastrophic 1 | . 1 . Database Lockouts . | . . . Manual 10 | . 10 . Terminals 16 | . 16 . Fabricators . | . . . Repair Stations . | . . . Recycling Units . | . . . Scanalyzers . | . . . Garrison Access . | . . . Terminal Hacks 10 | . 7 3 Record 3 | . 2 1 Robot Analysis 3 | . 3 . Open Door 1 | . . 1 Locate Traps 1 | . 1 . Maintenance Status 1 | . 1 . Release Object 1 | . . 1 Fabricator Hacks . | . . . Repair Station Hacks . | . . . Recycling Unit Hacks . | . . . Scanalyzer . | . . . Garrison Access Hacks . | . . . Unauthorized Hacks 2 | . 2 . Terminals 2 | . 2 . Botnet 2 | . 2 . Fabricators . | . . . Repair Stations . | . . . Recycling Units . | . . . Scanalyzers . | . . . Garrison Access . | . . . Data Cores Recovered 1 | . 1 . Used . | . . . Hacking Detections 5 | . 5 . Full Trace Events . | . . . Feedback Events . | . . . Feedback Blocked . | . . . Robot Schematics Acquired . | . . . Robots Built . | . . . Authchips . | . . . Time . | . . . Total Robot Build Rating . | . . . Part Schematics Acquired . | . . . Parts Built . | . . . Authchips . | . . . Time . | . . . Total Part Build Rating . | . . . Parts Repaired . | . . . Time . | . . . Parts Recycled . | . . . Recycled Matter . | . . . Retrieved Matter . | . . . Retrieved Components . | . . . Parts Scanalyzed . | . . . Part Schematics Acquired . | . . . Parts Damaged . | . . . Bothacking | -11 -10 -10 ------------ Run | Yrd Mat Sub Used RIF Installer . | . . . Robots Hacked . | . . . Non-combat . | . . . Combat . | . . . Robot Hacks Applied . | . . . Relay Couplers Released . | . . . Fabnet Peak Effective % . | . . . Robots Rewired . | . . . Allies Hacked . | . . . Hacks Repelled . | . . . Allies | -11 -10 -10 -------- Run | Yrd Mat Sub Total Allies . | . . . Largest Group . | . . . Highest-Rated Group . | . . . Highest-Rated Ally . | . . . Total Orders . | . . . Ally Attacks . | . . . Total Damage . | . . . Kills . | . . . Allies Corrupted . | . . . Allies Melted . | . . . Intel | -11 -10 -10 ------- Run | Yrd Mat Sub Robot Analysis Total 3 | . 3 . Derelict Logs Recovered . | . . . Drone Launches . | . . . Drone Recoveries . | . . . Exploration | -11 -10 -10 ------------- Run | Yrd Mat Sub Turns Passed 2319 | 69 1351 899 Spaces Moved 1444 | 49 868 527 Core 4 | 1 . 3 Treads . | . . . Legs . | . . . Wheels 1440 | 48 868 524 Hover . | . . . Flight . | . . . Fastest Speed 50 | 50 90 129 Average Speed 132 | 88 130 139 Slowest Speed 1400 | 90 175 1400 Overloaded Moves . | . . . Propulsion Burnouts . | . . . Robots Hopped . | . . . Cave-ins Triggered . | . . . Exploration Rate (%) 42 | 4 99 25 Regions Visited 2 Branch Regions 1 Pre-discovered Areas 1 | . . 1 Known Exits Taken . | . . . Unknown Exits Taken 2 | 1 1 . Scrap Searched . | . . . Spaces Dug 22 | . 9 13 Terrain Destroyed 128 | . 9 119 Melee . | . . . Projectile 7 | . . 7 AOE 121 | . 9 112 Terrain Rammed . | . . . Walls Destroyed . | . . . Machines Disabled . | . . . Actions | -11 -10 -10 --------- Run | Yrd Mat Sub Total 1701 | 63 1013 625 Wait 78 | . 74 4 Move 1442 | 48 867 527 Hop . | . . . Pick Up 27 | 3 19 5 Fast Attach 12 | 5 3 4 Attach 8 | 2 . 6 Detach . | . . . Swap 11 | . 4 7 Drop 14 | . 1 13 Fire 107 | 5 45 57 Melee . | . . . Ram . | . . . Kick . | . . . Crush . | . . . Escape Stasis . | . . . Rewire 2 | . . 2 Trap . | . . . Miscellaneous . | . . . Route ------- -11/Scrapyard -10/Materials (discovered 5 exits: [*Mat x3] / [*Min] / *Sub) -10/Subcaves History --------- Turn | Location | Event 22 | -11/Scrapyard | Discovered new exit (range 16) 70 | -11/Scrapyard | Entered Materials 260 | -10/Materials | Discovered new exit (range 8) 308 | -10/Materials | Build established: Mutant 404 | -10/Materials | Discovered new exit (range 5) 680 | -10/Materials | Lost 3 parts (1p1n1u) 1106 | -10/Materials | Discovered new exit (range 11) 1309 | -10/Materials | Discovered new exit (range 6) 1387 | -10/Materials | Discovered new exit (range 9) 1421 | -10/Materials | Entered Subcaves 1423 | -10/Subcaves | Shifting Twisted Machinery released Sub. Power Source 1430 | -10/Subcaves | Shifting Twisted Machinery released Sub. Power Source 1507 | -10/Subcaves | Learned location of Zion (-7) 1507 | -10/Subcaves | Met a Zionite searching for "candidates" 1616 | -10/Subcaves | Lost 5 parts (1p2n2w) 1670 | -10/Subcaves | A swath of the cavern ceiling suddenly collapsed 1683 | -10/Subcaves | Core integrity fell below 50% 1695 | -10/Subcaves | Core integrity fell below 20% 1794 | -10/Subcaves | Found SUBCON Basin 2300 | -10/Subcaves | Ambushed by Subdweller buried in earth 2309 | -10/Subcaves | Ambushed by Subdweller buried in earth 2320 | -10/Subcaves | Destroyed by OS-XDY(R) with Subdweller Beam Cannon Last Messages --------------- 02052_ Acquired 51 matter. 02055_ Dropped Lgt. Assault Rifle. 02055_ Acquired Sub. Laser. 02294_ The unstable cave ceiling collapses. 02301_ OS-XDY(R): "ARGHSUB!" 02305_ The unstable cave ceiling collapses. 02310_ AB-L9S(R): "ARGHSUB!" 02311_ The unstable cave ceiling collapses. 02311_ AB-L9S(R) destroyed. 02313_ PZ-XJY(R): "ARGHSUB!" 02313_ The unstable cave ceiling collapses. 02315_ OS-XDY(R) affixes Scrap Shield Fragment to Scrap Shield. 02315_ Wheel destroyed. 02315_ Destroyed Wheel. 02317_ Com. Wheel destroyed. 02317_ Destroyed Com. Wheel. 02317_ Grenade Launcher destroyed. 02317_ Destroyed Grenade Launcher. 02320_ Lgt. Ion Engine destroyed. Map ----- +----------------------------------------------------+ | ?????????????????????????????????????????????????? | | ?????????????????????????????????????????????????? | | ?????????????????????????????????????????????????? | | ?????????????????????????????????????????????????? | | ?????????????????????????????????????????????????? | | ?????????????????????????????????????????????????? | | ?????????????????????????????????????????????????? | | ?????????????????????????????????????????????????? | | ???????#?????????????????????????????????????????? | | ?????? #?????????????????????????????????????????? | | ???? ###???????????????????????????????????????? | | ???? #???????????????????????????????????????? | | ???? #???????????????????????????????????????? | | #?? #???????????????????????????????????????? | | #?? #???????????????????????????????????????? | | ?? #???????????????????????????????????????? | | #?# #???????????????????????????????????????? | | ## #????????????????????????????????????????? | | #?????????????????????????????????????????? | | #???????????????????????????????????????????? | | ##??????????????????????######???????????????? | | ##?????????????????????## ##??????????????? | | ##???????????????????### #????###???????? | | #????????????????????# & #???## ####??? ? | | #????????????????????# * ! #???# ##??? | | #?????????????????????#@R #????# ##??# | | #?????????????????????# R #??### #??# | | #????????????????????? #?## #### | | ##????????????????????? ### "##"" | | #?????????????????????### ## """ | | #????????????????????????# # "## | | ##???????????????????????### ## *### | | #?????????????????????????# ### " | | ##????????????????????????#######?## """ " | | ##????????????????????????????????# "" #"### | | ###??????????????????????????????## " ###?? | | #???????????????????????????????# ##?? | | #???????????????????????????????## " ### | | "" ##???????????????????????????????## " # | | "" #????????????????????????????????# # | | " " ##??????####???????########??###?## # | | # "##???????# ##??##### # #### ### ## ## | | ""##????????# ##?# ### ## | | # #?????????# #?## ### ### | | # ###??###?## ??# # # # #? ###?# | | ## ##### ### #?### ! ############ ##?# #???# | | #"""## ## ### #??????????### #### #???? | | """"""" # ##???????????## ## ##### | | #""%## ## # ##??????????# ## # | | """##?#?# ##????###### | +----------------------------------------------------+ Best States ------------- Heat Dissipation 25 Energy Generation 15 Energy Capacity 250 Matter Stores 300 Matter Capacity 300 Sight Range 21 Terrain Scan Density 10 Propulsion Shielding 33 Evasion (%) 42 Item Schematics ----------------- None Robot Schematics ------------------ None Fabricated ------------ Nothing Alien Tech Used ----------------- None Achievements -------------- None Challenges ------------ None Game ------ Seed NuclearDefenseUnit Manual? 0 Play Time 00:22:01 Cumulative 125.4 hours Start 2024.08.08 @ 22:08:06 End 2024.08.08 @ 23:17:55 Sessions 7 Manual Loads 0 Difficulty Rogue Special Mode None Game No. 34 Rogue 15 Adventurer 17 Explorer 2 Win Type - Total 3 Types 2/0/1/0/0/0/0/0/0 Lore% 43 Gallery% 58 Achievement% 57 Wizard Run 0 Options --------- Layout 2 ASCII 0 Keyboard 1 Movement Vi Keybinds 0 Fullscreen 0 Font 20/SmallcapsGlow Map View 64x51 Zoom Use 0% Tactical HUD 1 Map Filters NONE Filters NONE Steam 1 RUN: af05b4f7-5807-4c70-957b-097409128c94